bitfinex/quotes_BTCUSD_20250109
["timestamp","ask_amount","ask_price","bid_price","bid_amount"]
[1736422061435,0.15,93883.0,93865.0,0.00031744]
[1736422061643,0.15,93879.0,93858.0,0.0773]
[1736422061849,0.09968256,93887.0,93851.0,0.213103]
[1736422061850,0.10484127,93868.0,93851.0,0.213103]
[1736422062053,0.10484127,93861.0,93851.0,0.213103]
[1736422062464,0.10484127,93861.0,93850.0,0.00031798]
[1736422062465,0.15,93869.0,93861.0,0.00031744]
[1736422062673,0.173,93868.0,93861.0,0.00031744]
[1736422063496,0.14365099,93884.0,93868.0,0.0818]
[1736422063698,0.10484127,93880.0,93869.0,0.10429976]
[1736422063947,3.233382,93879.0,93869.0,0.10429976]
[1736422064133,0.15,93877.0,93869.0,0.10429976]
[1736422064350,0.15,93875.0,93869.0,0.10429976]
[1736422064510,0.15,93873.0,93869.0,0.10429976]
[1736422064723,0.15,93873.0,93863.0,0.0496]
[1736422064929,0.25484127,93873.0,93864.0,0.10429976]
[1736422065385,0.3016299,93873.0,93864.0,0.10429976]
[1736422065968,0.15,93871.0,93864.0,0.10429976]
[1736422066162,3.083382,93870.0,93864.0,0.10429976]
[1736422066765,3.083382,93870.0,93856.0,0.00031744]
[1736422066966,3.083382,93870.0,93858.0,0.00031744]
[1736422066967,0.213062,93869.0,93858.0,0.00031744]
[1736422067179,0.213067,93867.0,93858.0,0.00031744]
[1736422068688,0.222067,93867.0,93858.0,0.00031744]
[1736422070342,0.213076,93864.0,93851.0,0.213102]
[1736422070515,2.142,93863.0,93856.0,0.00031744]
[1736422070722,0.554,93862.0,93856.0,0.00031744]
[1736422070919,0.213076,93864.0,93856.0,0.00031744]
[1736422070920,0.556,93863.0,93856.0,0.00031744]
[1736422071123,0.213076,93864.0,93856.0,0.00031744]
[1736422071327,0.009,93867.0,93852.0,0.10429976]
[1736422071328,0.213078,93862.0,93852.0,0.10429976]
[1736422071645,3.13017063,93861.0,93852.0,0.10429976]
[1736422071790,3.083382,93860.0,93852.0,0.10429976]
[1736422072837,3.083382,93860.0,93856.0,0.001]
[1736422073010,3.090382,93860.0,93856.0,0.001]
[1736422073210,3.083382,93859.0,93856.0,0.001]
[1736422073504,0.07426975,93858.0,93852.0,0.10429976]
[1736422073714,0.07426975,93858.0,93856.0,0.00031744]
[1736422073928,0.007,93860.0,93856.0,0.00031744]
[1736422074131,2.035,93859.0,93856.0,0.00031744]
[1736422074256,0.213078,93862.0,93856.0,0.00031744]
[1736422074463,1.81,93861.0,93856.0,0.00131744]
[1736422074661,0.007,93860.0,93856.0,0.00131744]
[1736422074866,1.536,93859.0,93856.0,0.00131744]
[1736422075091,1.863,93861.0,93856.0,0.00131744]
[1736422075247,0.007,93859.0,93856.0,0.00131744]
[1736422075448,0.213078,93862.0,93856.0,0.00131744]
[1736422075649,1.867,93861.0,93856.0,0.00131744]
[1736422075925,0.007,93860.0,93856.0,0.00031744]
[1736422076097,1.556,93859.0,93856.0,0.00131744]
[1736422076300,0.158,93859.0,93856.0,0.00131744]
[1736422076510,0.213078,93862.0,93856.0,0.00131744]
[1736422076722,0.161,93861.0,93856.0,0.00131744]
[1736422076915,0.161,93861.0,93856.0,0.00031744]
[1736422077456,0.161,93861.0,93856.0,0.00131744]
[1736422077598,0.185,93860.0,93856.0,0.00131744]
[1736422077794,0.185,93861.0,93856.0,0.00131744]
[1736422078002,0.17,93861.0,93858.0,0.00031744]
[1736422078207,0.14365099,93881.0,93867.0,0.21338444]
[1736422078463,0.744,93880.0,93871.0,0.00031744]
[1736422078648,0.213038,93880.0,93871.0,0.00031744]
[1736422079008,0.15943199,93881.0,93870.0,0.213058]
[1736422079009,0.15943199,93881.0,93874.0,0.00031744]
[1736422079216,0.37246699,93881.0,93875.0,0.077]
[1736422079582,0.228816,93881.0,93875.0,0.077]
[1736422079947,0.009,93880.0,93875.0,0.077]
[1736422081818,0.228816,93881.0,93875.0,0.077]
[1736422082031,0.237816,93881.0,93875.0,0.077]
[1736422082251,0.21304,93879.0,93871.0,0.00031744]
[1736422082654,0.21304,93879.0,93867.0,0.3942822]
[1736422082876,0.21304,93879.0,93869.0,0.213062]
[1736422083080,0.21304,93879.0,93870.0,0.10429976]
[1736422083233,0.05928815,93878.0,93870.0,0.10429976]
[1736422083432,0.05928815,93878.0,93874.0,0.00031744]
[1736422083632,0.228816,93881.0,93874.0,0.00031744]
[1736422083811,0.002,93879.0,93874.0,0.00031744]
[1736422084293,0.228816,93881.0,93874.0,0.00031744]
[1736422084608,0.002,93878.0,93874.0,0.00031744]
[1736422085216,0.002,93878.0,93870.0,0.10429976]
[1736422085217,0.215043,93878.0,93870.0,0.10429976]
[1736422085416,0.0443859,93877.0,93870.0,0.10429976]
[1736422085998,0.002,93878.0,93874.0,0.00031744]
[1736422086197,0.009,93878.0,93874.0,0.00031744]
[1736422086612,0.231816,93881.0,93874.0,0.00031744]
[1736422086766,0.009,93877.0,93874.0,0.00031744]
[1736422087152,0.009,93877.0,93876.0,0.00031744]
[1736422088067,0.015781,93881.0,93876.0,0.00031744]
[1736422088263,0.15,93884.0,93876.0,0.00031744]
[1736422088465,0.009,93878.0,93876.0,0.00031744]
[1736422088682,0.15,93884.0,93876.0,0.00031744]
[1736422089096,0.011,93877.0,93876.0,0.00031744]
[1736422089288,0.002,93877.0,93876.0,0.00031744]
[1736422089693,0.213031,93883.0,93876.0,0.00031744]
[1736422090098,0.009,93878.0,93876.0,0.00031744]
[1736422091454,0.003,93883.0,93876.0,0.00031744]
[1736422091855,0.213033,93882.0,93876.0,0.00031744]
[1736422092516,0.009,93878.0,93876.0,0.00031744]
[1736422092730,0.213033,93882.0,93876.0,0.00031744]
[1736422093192,0.002,93878.0,93876.0,0.00031744]
[1736422093615,0.213033,93882.0,93876.0,0.00031744]
[1736422093762,0.216033,93882.0,93876.0,0.00031744]
[1736422094415,0.213033,93882.0,93876.0,0.00031744]
[1736422094556,0.002,93878.0,93876.0,0.00031744]
[1736422094775,0.011,93878.0,93876.0,0.00031744]
[1736422095003,0.002,93878.0,93876.0,0.00031744]
[1736422095432,0.002,93878.0,93875.0,0.213047]
[1736422095433,0.002,93878.0,93877.0,0.00031744]
[1736422095639,0.002,93878.0,93877.0,0.08341744]
[1736422095844,0.009,93882.0,93881.0,0.00031744]
[1736422096058,0.009,93882.0,93881.0,0.1046172]
[1736422096287,0.003,93882.0,93881.0,0.10568219]
[1736422096762,0.212996,93899.0,93881.0,0.10568219]
[1736422096929,0.01506004,93889.0,93888.0,0.213019]
[1736422097130,8.53e-05,93889.0,93888.0,0.31731876]
[1736422097785,8.53e-05,93889.0,93888.0,0.10429976]
[1736422098193,4.237e-05,93892.0,93888.0,0.10429976]
[1736422098422,4.237e-05,93892.0,93889.0,0.10429976]
[1736422098628,4.237e-05,93892.0,93891.0,0.00031744]
[1736422098956,0.01508096,93892.0,93891.0,0.07941744]
[1736422099163,4.237e-05,93892.0,93891.0,0.07941744]
[1736422099555,0.00904237,93892.0,93891.0,0.07941744]
[1736422099750,4.237e-05,93892.0,93891.0,0.07941744]
[1736422101866,0.00904237,93892.0,93891.0,0.07941744]
[1736422109867,0.00904237,93892.0,93891.0,0.00031744]
[1736422112313,0.00904237,93892.0,93891.0,0.18661512]
[1736422112531,0.00904237,93892.0,93891.0,0.31131512]
[1736422113398,0.00904237,93892.0,93891.0,0.2293172]
[1736422115499,8.52e-05,93894.0,93893.0,0.10031744]
[1736422115870,0.00023473,93894.0,93893.0,0.35328178]
[1736422116014,0.00023473,93894.0,93893.0,0.3522172]
[1736422116665,0.00023473,93894.0,93893.0,1.1470172]
[1736422116871,6e-07,93901.0,93900.0,0.35031744]
[1736422117077,6e-07,93901.0,93900.0,0.8718492]
[1736422117281,6e-07,93901.0,93900.0,0.8488492]
[1736422118870,0.0010006,93901.0,93900.0,0.8488492]
[1736422119091,0.0010006,93901.0,93900.0,0.86258324]
[1736422119302,0.0010006,93901.0,93900.0,0.89158656]
[1736422119507,0.0010006,93901.0,93900.0,0.89558656]
[1736422120120,0.0010006,93901.0,93900.0,0.86658324]
[1736422120265,0.0010006,93901.0,93900.0,1.41138324]
[1736422126260,0.0010006,93901.0,93900.0,1.41134324]
[1736422127326,0.0010006,93901.0,93900.0,1.50631369]
[1736422127932,0.0010006,93901.0,93900.0,1.55351347]
[1736422128337,0.0010006,93901.0,93900.0,1.41134324]
[1736422129268,0.0010006,93901.0,93900.0,1.515643]
[1736422130111,1e-07,93905.0,93903.0,0.00031744]
[1736422130351,1e-07,93905.0,93904.0,0.81586462]
[1736422130565,3e-07,93908.0,93907.0,0.97141744]
[1736422130773,5e-07,93910.0,93909.0,0.44961744]
[1736422130971,5e-07,93910.0,93909.0,0.5539172]
[1736422132840,0.01112237,93942.0,93941.0,0.21321644]
[1736422133045,0.00049863,93942.0,93941.0,0.3175162]
[1736422133690,0.00049863,93942.0,93941.0,0.00031744]
[1736422133888,0.00049863,93942.0,93932.0,0.00031744]
[1736422133889,0.292099,93941.0,93932.0,0.00031744]
[1736422134088,0.0361176,93942.0,93923.0,0.00031744]
[1736422134089,0.15,93938.0,93923.0,0.00031744]
[1736422134312,0.0792,93925.0,93923.0,0.00031744]
[1736422136604,0.212928,93929.0,93923.0,0.00131744]
[1736422136804,0.009,93925.0,93923.0,0.00131744]
[1736422137067,0.06170913,93925.0,93923.0,0.00031744]
[1736422137660,0.07070913,93925.0,93923.0,0.00131744]
[1736422138076,0.06170913,93925.0,93923.0,0.00031744]
[1736422138283,0.212928,93929.0,93923.0,0.00031744]
[1736422138686,0.001,93925.0,93923.0,0.00031744]
[1736422139261,0.22666876,93929.0,93923.0,0.00031744]
[1736422139473,0.009,93925.0,93923.0,0.00131744]
[1736422139695,0.22766876,93929.0,93923.0,0.00031744]
[1736422140055,0.008,93925.0,93923.0,0.00131744]
[1736422141258,0.008,93925.0,93923.0,0.00031744]
[1736422141618,0.22666876,93929.0,93923.0,0.00031744]
[1736422142710,0.212937,93925.0,93923.0,0.00031744]
[1736422142935,0.01374076,93929.0,93923.0,0.00031744]
[1736422143143,0.23259392,93928.0,93923.0,0.00031744]
[1736422143342,0.212929,93928.0,93923.0,0.00131744]
[1736422143542,0.212929,93928.0,93923.0,0.00031744]
[1736422144110,0.009,93925.0,93923.0,0.00131744]
[1736422144281,0.212929,93928.0,93923.0,0.00031744]
[1736422144282,0.212938,93924.0,93923.0,0.00031744]
[1736422144642,0.009,93928.0,93923.0,0.00131744]
[1736422144841,0.212938,93924.0,93923.0,0.00031744]
[1736422145118,0.02049783,93927.0,93923.0,0.00031744]
[1736422145327,0.008,93925.0,93923.0,0.00131744]
[1736422146517,0.008,93925.0,93923.0,0.00031744]
[1736422146664,0.3315023,93930.0,93923.0,0.00031744]
[1736422146899,0.220929,93928.0,93923.0,0.00031744]
[1736422147109,0.212933,93926.0,93923.0,0.00031744]
[1736422147308,0.212929,93928.0,93923.0,0.00031744]
[1736422147509,0.007,93925.0,93923.0,0.00031744]
[1736422147711,0.212929,93928.0,93923.0,0.00031744]
[1736422147954,3.083382,93927.0,93923.0,0.00031744]
[1736422148375,0.04454918,93926.0,93923.0,0.00031744]
[1736422149373,0.212926,93929.0,93923.0,0.00031744]
[1736422149573,0.571,93928.0,93923.0,0.00031744]
[1736422149718,0.797,93927.0,93923.0,0.00031744]
[1736422150086,0.684,93928.0,93923.0,0.00031744]
[1736422150281,0.79,93927.0,93923.0,0.00031744]
[1736422150504,0.911,93926.0,93923.0,0.00031744]
[1736422150713,0.221926,93929.0,93923.0,0.00031744]
[1736422150856,1.024,93928.0,93923.0,0.00031744]
[1736422151050,0.212931,93927.0,93923.0,0.00031744]
[1736422151393,3.077275,93926.0,93923.0,0.00031744]
[1736422152447,0.212926,93929.0,93923.0,0.00031744]
[1736422152620,3.077275,93928.0,93923.0,0.00031744]
[1736422152825,0.212931,93927.0,93923.0,0.00031744]
[1736422153032,3.077275,93926.0,93923.0,0.00131744]
[1736422153374,3.18157476,93926.0,93923.0,0.00131744]
[1736422153573,0.212935,93925.0,93923.0,0.00131744]
[1736422153823,0.212931,93927.0,93923.0,0.00031744]
[1736422154028,3.077275,93926.0,93923.0,0.00031744]
[1736422154218,3.077275,93926.0,93923.0,0.00131744]
[1736422154564,3.077275,93926.0,93923.0,0.00031744]
[1736422154944,0.006,93925.0,93923.0,0.00031744]
[1736422156268,0.22666303,93930.0,93923.0,0.00031744]
[1736422156468,3.290201,93929.0,93923.0,0.00031744]
[1736422156838,0.212936,93925.0,93923.0,0.00131744]
[1736422157034,0.212936,93925.0,93924.0,0.00031744]
[1736422157515,0.007,93926.0,93924.0,0.00031744]
[1736422157718,0.212926,93929.0,93924.0,0.00031744]
[1736422157907,2.698,93928.0,93924.0,0.00031744]
[1736422158593,2.13,93928.0,93924.0,0.00031744]
[1736422158822,2.708,93928.0,93924.0,0.00031744]
[1736422159464,0.212931,93927.0,93924.0,0.00031744]
[1736422159703,3.077275,93926.0,93924.0,0.00031744]
[1736422159900,0.007,93925.0,93924.0,0.00131744]
[1736422160733,0.001,93928.0,93924.0,0.00031744]
[1736422160914,1.417,93927.0,93924.0,0.00031744]
[1736422161116,1.417,93927.0,93924.0,0.00131744]
[1736422161314,1.37,93927.0,93924.0,0.00131744]
[1736422161516,1.028,93927.0,93924.0,0.00131744]
[1736422161712,1.611,93927.0,93924.0,0.00131744]
[1736422162364,1.611,93927.0,93924.0,0.00031744]
[1736422162566,2.835,93928.0,93924.0,0.00031744]
[1736422162769,0.007,93925.0,93924.0,0.00131744]
[1736422162984,0.212935,93926.0,93924.0,0.00031744]
[1736422163195,0.21298,93906.0,93905.0,0.00031744]
[1736422163439,0.212987,93903.0,93901.0,0.09423002]
[1736422163794,3.077275,93902.0,93901.0,0.09423002]
[1736422164053,0.213017,93889.0,93888.0,0.09454746]
[1736422164680,0.15,93901.0,93888.0,0.09454746]
[1736422164891,0.213002,93896.0,93888.0,0.21333544]
[1736422165328,0.212992,93900.0,93888.0,0.21333544]
[1736422165545,0.14365099,93913.0,93899.0,0.00031744]
[1736422165755,0.01325299,93902.0,93899.0,0.00031744]
[1736422165965,0.00049833,93902.0,93899.0,0.00031744]
[1736422166617,0.002,93900.0,93899.0,0.00031744]
[1736422167901,0.00749833,93902.0,93899.0,0.00031744]
[1736422168346,0.00849833,93902.0,93899.0,0.00031744]
[1736422168755,0.01374598,93902.0,93899.0,0.00031744]
[1736422168958,0.00049833,93902.0,93899.0,0.00031744]
[1736422169130,0.006,93900.0,93899.0,0.00031744]
[1736422169465,0.00049833,93902.0,93899.0,0.00031744]
[1736422169700,0.00749833,93902.0,93899.0,0.00031744]
[1736422169863,0.00849833,93902.0,93899.0,0.00031744]
[1736422170071,0.00149833,93902.0,93899.0,0.00031744]
[1736422170301,0.006,93900.0,93899.0,0.00031744]
[1736422170663,0.00149833,93902.0,93899.0,0.00031744]
[1736422171038,0.00049833,93902.0,93899.0,0.00031744]
[1736422171964,0.00749833,93902.0,93899.0,0.00031744]
[1736422172185,0.00849833,93902.0,93899.0,0.00031744]
[1736422183553,0.22148633,93902.0,93899.0,0.00031744]
[1736422183974,0.0759,93901.0,93899.0,0.00031744]
[1736422184193,0.15,93898.0,93886.0,0.00031744]
[1736422184401,0.213017,93889.0,93881.0,0.00031744]
[1736422184603,0.426034,93889.0,93881.0,0.00031744]
[1736422185692,0.15,93886.0,93868.0,0.00031744]
[1736422185895,0.15,93886.0,93875.0,0.00031744]
[1736422185896,3.303575,93886.0,93875.0,0.00031744]
[1736422186125,1.42371775,93886.0,93875.0,0.00031744]
[1736422186330,1.16071775,93886.0,93875.0,0.00031744]
[1736422187128,1.16771775,93886.0,93885.0,0.0011704]
[1736422187387,1.16071775,93886.0,93885.0,0.0011704]
[1736422187589,1.16071775,93886.0,93885.0,0.0001704]
[1736422188057,1.16171775,93886.0,93885.0,0.0001704]
[1736422188471,1.16071775,93886.0,93885.0,0.0001704]
[1736422188692,1.16871775,93886.0,93885.0,0.0001704]
[1736422189003,1.16171775,93886.0,93885.0,0.0001704]
[1736422189370,1.16871775,93886.0,93885.0,0.0001704]
[1736422191710,1.16071775,93886.0,93885.0,0.0001704]
[1736422191916,1.16171775,93886.0,93885.0,0.0001704]
[1736422192114,1.06071775,93886.0,93885.0,0.0001704]
[1736422192389,0.001,93886.0,93885.0,0.0001704]
[1736422192681,0.01263085,93889.0,93885.0,0.0001704]
[1736422192928,0.006,93886.0,93885.0,0.0001704]
[1736422194596,0.219024,93886.0,93885.0,0.0001704]
[1736422195183,3.296299,93886.0,93885.0,0.0001704]
[1736422195404,3.290299,93886.0,93885.0,0.0001704]
[1736422195863,3.295299,93886.0,93885.0,0.0001704]
[1736422196095,3.290299,93886.0,93885.0,0.0001704]
[1736422196325,3.296299,93886.0,93885.0,0.0001704]
[1736422196759,3.290299,93886.0,93885.0,0.0001704]
[1736422196964,3.295299,93886.0,93885.0,0.0001704]
[1736422197972,3.445299,93886.0,93885.0,0.0001704]
[1736422198748,3.524099,93886.0,93885.0,0.0001704]
[1736422199624,3.468299,93886.0,93885.0,0.0001704]
[1736422199826,2.059024,93886.0,93885.0,0.0001704]
[1736422200025,1.617024,93886.0,93885.0,0.0001704]
[1736422200255,1.595024,93886.0,93885.0,0.0001704]
[1736422200662,1.74672376,93886.0,93885.0,0.0001704]
[1736422200859,1.84201098,93886.0,93885.0,0.0001704]
[1736422201060,0.173,93885.0,93859.0,0.0001704]
[1736422201261,0.363078,93862.0,93859.0,0.0001704]
[1736422201462,3.440353,93862.0,93859.0,0.0001704]
[1736422202072,0.363078,93862.0,93859.0,0.0001704]
[1736422202264,0.44947151,93862.0,93859.0,0.0001704]
[1736422202499,3.440353,93862.0,93859.0,0.0001704]
[1736422202707,3.440353,93862.0,93861.0,0.00031993]
[1736422202910,0.860078,93862.0,93861.0,0.00031993]
[1736422203092,0.575078,93862.0,93861.0,0.00031993]
[1736422203295,0.584078,93862.0,93861.0,0.00031993]
[1736422203489,0.575078,93862.0,93861.0,0.00031993]
[1736422204501,0.600078,93862.0,93861.0,0.00031993]
[1736422204967,0.620095,93862.0,93861.0,0.00031993]
[1736422205178,0.620095,93862.0,93861.0,0.00013284]
[1736422205390,0.611095,93862.0,93861.0,0.00013284]
[1736422205635,0.692795,93862.0,93861.0,0.00013284]
[1736422208506,0.81363139,93862.0,93861.0,0.00013284]
[1736422208649,0.80763139,93862.0,93861.0,0.00013284]
[1736422208853,0.80963139,93862.0,93861.0,0.00013284]
[1736422209018,0.81863139,93862.0,93861.0,0.00013284]
[1736422209222,0.80963139,93862.0,93861.0,0.00013284]
[1736422209719,0.81863139,93862.0,93861.0,0.00013284]
[1736422209923,0.80963139,93862.0,93861.0,0.00013284]
[1736422210124,0.613095,93862.0,93861.0,0.00013284]
[1736422210400,0.622095,93862.0,93861.0,0.00013284]
[1736422210839,0.597095,93862.0,93861.0,0.00013284]
[1736422211046,0.234017,93862.0,93861.0,0.00013284]
[1736422211248,0.237017,93862.0,93861.0,0.00013284]
[1736422211479,0.314017,93862.0,93861.0,0.00013284]
[1736422211655,0.569017,93862.0,93861.0,0.00013284]
[1736422211894,0.63841051,93862.0,93861.0,0.00013284]
[1736422212097,0.555017,93862.0,93861.0,0.00013284]
[1736422212303,0.280017,93862.0,93861.0,0.00013284]
[1736422213191,0.025017,93862.0,93861.0,0.00013284]
[1736422213782,0.242017,93862.0,93861.0,0.00013284]
[1736422213989,0.392017,93862.0,93861.0,0.00013284]
[1736422214185,0.415017,93862.0,93861.0,0.00013284]
[1736422214386,0.5087771,93862.0,93861.0,0.00013284]
[1736422216577,0.492217,93862.0,93861.0,0.00013284]
[1736422216994,0.50878825,93862.0,93861.0,0.00013284]
[1736422217352,0.492217,93862.0,93861.0,0.00013284]
[1736422217997,0.50878825,93862.0,93861.0,0.00013284]
[1736422218202,0.65998801,93862.0,93861.0,0.00013284]
[1736422219183,0.41114168,93862.0,93861.0,0.00013284]
[1736422219425,3.27141668,93862.0,93861.0,0.00013284]
[1736422220846,3.28443634,93862.0,93861.0,0.00013284]
[1736422221043,0.1,93856.0,93853.0,0.0001704]
[1736422221274,0.173,93854.0,93853.0,9.582e-05]
[1736422221576,0.36009976,93854.0,93853.0,9.582e-05]
[1736422221793,3.22037476,93854.0,93853.0,9.582e-05]
[1736422222015,3.2369513,93854.0,93853.0,9.582e-05]
[1736422222460,3.2369513,93854.0,93853.0,0.00109582]
[1736422222919,3.2369513,93854.0,93853.0,9.582e-05]
[1736422223127,3.22937476,93854.0,93853.0,0.00109582]
[1736422223620,3.2459513,93854.0,93853.0,0.00109582]
[1736422224329,3.2479513,93854.0,93853.0,0.00109582]
[1736422225372,0.38611,93848.0,93847.0,0.0001704]
[1736422225579,3.35068476,93848.0,93847.0,0.0001704]
[1736422226367,3.36727913,93848.0,93847.0,0.0001704]
[1736422226740,3.35768476,93848.0,93847.0,0.0011704]
[1736422227319,3.253385,93848.0,93847.0,0.0011704]
[1736422227739,3.254385,93848.0,93847.0,0.0011704]
[1736422227976,3.15111,93848.0,93847.0,0.0011704]
[1736422228182,3.10111,93848.0,93847.0,0.0011704]
[1736422228982,3.22200413,93848.0,93847.0,0.0011704]
[1736422229191,3.3101198,93848.0,93847.0,0.0011704]
[1736422229597,0.386135,93837.0,93836.0,0.0001702]
[1736422229799,3.24641,93837.0,93836.0,0.0001702]
[1736422231465,3.24741,93837.0,93836.0,0.0001702]
[1736422232522,3.25641,93837.0,93836.0,0.0001702]
[1736422233329,2.365135,93837.0,93836.0,0.0001702]
[1736422233534,2.080135,93837.0,93836.0,0.0800702]
[1736422233740,0.01,93837.0,93836.0,0.12988764]
[1736422234615,0.02237461,93837.0,93836.0,0.12988764]
[1736422234815,0.02137461,93837.0,93836.0,0.12988764]
[1736422235433,0.213114,93847.0,93841.0,0.00031744]
[1736422235656,0.16176127,93870.0,93853.0,0.00031744]
[1736422235856,0.00014937,93864.0,93858.0,0.00031744]
[1736422236062,0.802076,93863.0,93859.0,0.0824]
[1736422236280,0.151,93862.0,93859.0,0.0824]
[1736422236482,0.00014937,93864.0,93859.0,0.08271744]
[1736422236963,0.15,93862.0,93859.0,0.08271744]
[1736422237170,0.00014937,93864.0,93863.0,0.00031744]
[1736422238200,0.00014937,93864.0,93862.0,0.00031744]
[1736422238203,0.00014937,93864.0,93861.0,0.00031744]
[1736422238359,0.00014937,93864.0,93862.0,0.00031744]
[1736422238979,0.00914937,93864.0,93862.0,0.00031744]
[1736422239390,0.00014937,93864.0,93862.0,0.00031744]
[1736422239822,0.00014937,93864.0,93859.0,0.0824]
[1736422239823,0.00514937,93864.0,93863.0,0.00031744]
[1736422240032,0.00014937,93864.0,93863.0,0.00031744]
[1736422240433,0.02416431,93864.0,93863.0,0.00031744]
[1736422240708,0.01516431,93864.0,93863.0,0.00031744]
[1736422240920,0.00014937,93864.0,93863.0,0.00031744]
[1736422241107,0.00014937,93864.0,93862.0,0.00031744]
[1736422241277,0.00214937,93864.0,93862.0,0.00031744]
[1736422241489,2.860275,93863.0,93862.0,0.00031744]
[1736422241932,3.010275,93863.0,93862.0,0.00031744]
[1736422243388,3.015275,93863.0,93862.0,0.00031744]
[1736422244027,0.15,93862.0,93859.0,0.0824]
[1736422244204,0.15,93862.0,93861.0,0.00031744]
[1736422245332,0.15014937,93864.0,93859.0,0.0824]
[1736422245550,0.15,93862.0,93859.0,0.0824]
[1736422246191,0.155,93862.0,93859.0,0.0824]
[1736422246411,0.155,93862.0,93861.0,0.00031744]
[1736422246586,0.15,93862.0,93861.0,0.00031744]
[1736422246795,0.005,93862.0,93861.0,0.00031744]
[1736422247495,0.00487175,93862.0,93861.0,0.00031744]
[1736422248313,0.00014937,93864.0,93861.0,0.00031744]
[1736422248535,0.15,93862.0,93861.0,0.00031744]
[1736422248752,0.155,93862.0,93861.0,0.00031744]
[1736422249164,0.155,93862.0,93861.0,0.21339844]
[1736422250253,0.005,93862.0,93861.0,0.21339844]
[1736422251100,0.005,93862.0,93861.0,0.00031744]
[1736422252378,0.005,93862.0,93861.0,0.21339844]
[1736422253186,0.005,93862.0,93861.0,0.00031744]
[1736422253554,0.01596761,93864.0,93861.0,0.00031744]
[1736422253791,0.15,93862.0,93861.0,0.00031744]
[1736422254132,0.154,93862.0,93861.0,0.00031744]
[1736422255046,0.004,93862.0,93861.0,0.21339844]
[1736422255251,0.004,93862.0,93861.0,0.00031744]
[1736422255448,0.01596761,93864.0,93863.0,0.00031744]
[1736422255651,0.64996761,93864.0,93863.0,0.00031744]
[1736422255830,0.65596761,93864.0,93863.0,0.00031744]
[1736422256083,0.64996761,93864.0,93863.0,0.00031744]
[1736422258746,0.65596761,93864.0,93863.0,0.00031744]
[1736422258975,0.64996761,93864.0,93863.0,0.00031744]
[1736422259310,0.65496761,93864.0,93863.0,0.00031744]
[1736422263743,0.86804161,93864.0,93863.0,0.00031744]
[1736422265358,0.65496761,93864.0,93863.0,0.00031744]
[1736422265512,0.30196761,93864.0,93863.0,0.00031744]
[1736422265727,0.00514937,93864.0,93863.0,0.1871172]
[1736422267383,0.00514937,93864.0,93863.0,0.18818249]
[1736422267891,0.00514937,93864.0,93863.0,0.33638249]
[1736422268093,0.00514937,93864.0,93863.0,0.3353172]
[1736422269123,0.00014937,93864.0,93863.0,0.3353172]
[1736422269521,0.00514937,93864.0,93863.0,0.3353172]
[1736422269717,0.00014937,93864.0,93863.0,0.3353172]
[1736422269941,0.00014937,93864.0,93863.0,0.9801172]
[1736422270144,0.00014937,93864.0,93863.0,1.08441696]
[1736422270553,0.10492647,93900.0,93894.0,0.00031744]
[1736422270884,0.00014951,93898.0,93894.0,0.00031744]
[1736422271060,2.860275,93897.0,93894.0,0.00031744]
[1736422271272,0.213001,93896.0,93891.0,0.00031744]
[1736422271475,0.213011,93892.0,93888.0,0.00031744]
[1736422271669,2.860275,93891.0,93889.0,0.00031744]
[1736422273293,2.869275,93891.0,93890.0,0.00031744]
[1736422273724,2.872275,93891.0,93889.0,0.00031744]
[1736422273922,0.012,93891.0,93889.0,0.00031744]
[1736422274113,0.003,93891.0,93889.0,0.00031744]
[1736422274432,0.213011,93892.0,93889.0,0.00031744]
[1736422274740,2.90619155,93891.0,93888.0,0.00031744]
[1736422275109,2.860275,93890.0,93888.0,0.00031744]
[1736422276266,2.860275,93890.0,93889.0,0.00031744]
[1736422276411,0.003,93891.0,93889.0,0.00031744]
[1736422276625,2.869275,93890.0,93889.0,0.00031744]
[1736422276826,2.869275,93890.0,93888.0,0.00031744]
[1736422277132,2.860275,93889.0,93888.0,0.00031744]
[1736422277329,2.860275,93889.0,93881.0,0.213034]
[1736422277549,3.073293,93889.0,93886.0,0.00031744]
[1736422277729,0.213022,93887.0,93876.0,0.00031744]
[1736422278109,0.213036,93881.0,93874.0,0.00031744]
[1736422278427,0.213029,93884.0,93880.0,0.00031744]
[1736422278642,2.860275,93883.0,93880.0,0.00031744]
[1736422278886,2.860275,93886.0,93880.0,0.00031744]
[1736422279823,0.213026,93885.0,93880.0,0.00031744]
[1736422280063,2.860275,93884.0,93880.0,0.00031744]
[1736422281327,0.213031,93883.0,93880.0,0.00031744]
[1736422281921,0.213026,93885.0,93880.0,0.00031744]
[1736422282084,0.213031,93883.0,93880.0,0.00031744]
[1736422282703,0.001,93884.0,93880.0,0.00031744]
[1736422282934,2.861275,93884.0,93880.0,0.00031744]
[1736422283141,0.05706032,93883.0,93880.0,0.00031744]
[1736422283345,2.91733532,93883.0,93880.0,0.00031744]
[1736422283642,0.05806032,93883.0,93880.0,0.00031744]
[1736422283866,0.05791233,93883.0,93880.0,0.00031744]
[1736422284274,0.06591233,93883.0,93880.0,0.00031744]
[1736422284792,0.009,93883.0,93880.0,0.00031744]
[1736422287987,0.009,93883.0,93882.0,0.07741744]
[1736422288192,0.009,93883.0,93882.0,0.12671744]
[1736422288527,0.009,93883.0,93882.0,0.23208225]
[1736422288729,0.009,93883.0,93882.0,0.2310172]
[1736422289337,0.008,93883.0,93882.0,0.2310172]
[1736422289561,8.52e-05,93900.0,93897.0,0.21331644]
[1736422289771,8.52e-05,93900.0,93897.0,0.4445162]
[1736422291192,0.00714951,93898.0,93897.0,0.4445162]
[1736422292438,0.00814951,93898.0,93897.0,0.4445162]
[1736422297627,0.00814951,93898.0,93897.0,0.21331644]
[1736422297830,0.00814951,93898.0,93897.0,0.3176162]
[1736422299027,0.00814951,93898.0,93897.0,0.4463162]
[1736422306285,0.00814951,93898.0,93897.0,0.44599876]
[1736422306695,0.00814951,93898.0,93897.0,0.1046172]
[1736422306900,0.00114951,93898.0,93897.0,0.1046172]
[1736422307355,0.00814951,93898.0,93897.0,0.1046172]
[1736422307560,0.00014951,93898.0,93897.0,0.1046172]
[1736422307990,0.00314951,93898.0,93897.0,0.1046172]
[1736422308189,0.00114951,93898.0,93897.0,0.1046172]
[1736422308453,0.00014951,93898.0,93897.0,0.1046172]
[1736422308889,0.00014951,93898.0,93897.0,0.21431644]